[Event "*** Titled Tuesday Blitz"]
[Site "Chess.com"]
[Date "2021.02.09"]
[Round "4"]
[White "ondoko"]
[Black "stasiek18"]
[Result "1-0"]
[WhiteElo "2231"]
[BlackElo "2380"]
[TimeControl "180+1"]
[EndTime "10:40:36 PST"]
[Termination "ondoko won on time"]

1. e4 {[%clk 0:03:00.9]} 1... c6 {[%clk 0:02:59.4]} 2. d4 {[%clk 0:02:54.1]}
2... d5 {[%clk 0:03:00.3]} 3. Nc3 {[%clk 0:02:54.2]} 3... dxe4 {[%clk
0:02:58.1]} 4. Nxe4 {[%clk 0:02:55.1]} 4... Nf6 {[%clk 0:02:58.6]} 5. Nxf6+
{[%clk 0:02:55]} 5... exf6 {[%clk 0:02:59.5]} 6. c3 {[%clk 0:02:55.5]} 6... Bd6
{[%clk 0:02:59.2]} 7. Bd3 {[%clk 0:02:56]} 7... O-O {[%clk 0:02:59.8]} 8. Qc2
{[%clk 0:02:56.2]} 8... Re8+ {[%clk 0:03:00.4]} 9. Ne2 {[%clk 0:02:56.4]} 9...
h5 {[%clk 0:03:00.9]} 10. O-O {[%clk 0:02:55.7]} 10... h4 {[%clk 0:03:01]} 11.
h3 {[%clk 0:02:42.5]} 11... Nd7 {[%clk 0:02:59.4]} 12. Be3 {[%clk 0:02:39]}
12... Nf8 {[%clk 0:02:56.4]} 13. c4 {[%clk 0:02:38.4]} 13... Bd7 {[%clk
0:02:44.2]} 14. Bf5 {[%clk 0:02:35.4]} 14... Ne6 {[%clk 0:02:41.4]} 15. Rad1
{[%clk 0:02:26.4]} 15... Ng5 {[%clk 0:02:32.2]} 16. c5 {[%clk 0:02:10.8]} 16...
Bc7 {[%clk 0:02:24.7]} 17. d5 {[%clk 0:02:10.5]} 17... Bxf5 {[%clk 0:02:18.2]}
18. Qxf5 {[%clk 0:02:09.9]} 18... cxd5 {[%clk 0:02:16.1]} 19. Rxd5 {[%clk
0:02:06.2]} 19... Qc8 {[%clk 0:02:14.3]} 20. Qxc8 {[%clk 0:01:54.1]} 20... Raxc8
{[%clk 0:02:13.6]} 21. Rfd1 {[%clk 0:01:40.2]} 21... Kf8 {[%clk 0:01:48.2]} 22.
Kf1 {[%clk 0:01:22.4]} 22... Be5 {[%clk 0:01:30.1]} 23. b4 {[%clk 0:01:18.2]}
23... Ne4 {[%clk 0:01:17.6]} 24. Rd7 {[%clk 0:01:04.2]} 24... Re7 {[%clk
0:01:16.3]} 25. a3 {[%clk 0:00:23.7]} 25... Ke8 {[%clk 0:01:13.8]} 26. Rxe7+
{[%clk 0:00:20.9]} 26... Kxe7 {[%clk 0:01:14.7]} 27. f3 {[%clk 0:00:15.7]} 27...
Ng3+ {[%clk 0:00:56.2]} 28. Nxg3 {[%clk 0:00:15.4]} 28... hxg3 {[%clk
0:00:56.8]} 29. f4 {[%clk 0:00:13.1]} 29... Bb2 {[%clk 0:00:56.5]} 30. Rd3
{[%clk 0:00:12.7]} 30... f5 {[%clk 0:00:43.9]} 31. Ke2 {[%clk 0:00:12.9]} 31...
Rd8 {[%clk 0:00:17.7]} 32. Rb3 {[%clk 0:00:12.7]} 32... Bf6 {[%clk 0:00:16.5]}
33. Kf3 {[%clk 0:00:12.1]} 33... Ke6 {[%clk 0:00:14.8]} 34. Kxg3 {[%clk
0:00:12.2]} 34... Rd1 {[%clk 0:00:15.3]} 35. Kf3 {[%clk 0:00:11.9]} 35... Kd5
{[%clk 0:00:15.4]} 36. b5 {[%clk 0:00:10.5]} 36... Kc4 {[%clk 0:00:14.7]} 37.
Rb4+ {[%clk 0:00:09.6]} 37... Kc3 {[%clk 0:00:13]} 38. c6 {[%clk 0:00:09.6]}
38... bxc6 {[%clk 0:00:12.1]} 39. bxc6 {[%clk 0:00:10.5]} 39... Rd6 {[%clk
0:00:08]} 40. c7 {[%clk 0:00:06.7]} 40... Rc6 {[%clk 0:00:08.1]} 41. Rb7 {[%clk
0:00:06.8]} 41... a5 {[%clk 0:00:07.5]} 42. Rb5 {[%clk 0:00:04.8]} 42... Rxc7
{[%clk 0:00:06.3]} 43. Rxa5 {[%clk 0:00:05.1]} 43... Kd3 {[%clk 0:00:04.5]} 44.
Rxf5 {[%clk 0:00:05.2]} 44... Rc3 {[%clk 0:00:03.5]} 45. Rd5+ {[%clk 0:00:05.2]}
45... Kc2 {[%clk 0:00:03.1]} 46. g4 {[%clk 0:00:04]} 46... Rxa3 {[%clk
0:00:03.1]} 47. g5 {[%clk 0:00:03.8]} 47... Be7 {[%clk 0:00:03.6]} 48. h4 {[%clk
0:00:04.3]} 48... Bb4 {[%clk 0:00:03.2]} 49. Ke4 {[%clk 0:00:03.1]} 49... Ra4
{[%clk 0:00:02.8]} 50. Kf5 {[%clk 0:00:03]} 50... Be1 {[%clk 0:00:03.3]} 51. Bc5
{[%clk 0:00:02.4]} 51... Bc3 {[%clk 0:00:02.1]} 52. Rd7 {[%clk 0:00:02.3]} 52...
g6+ {[%clk 0:00:02.4]} 53. Kg4 {[%clk 0:00:02.3]} 53... Bd2 {[%clk 0:00:03.3]}
54. Bd6 {[%clk 0:00:02.1]} 54... Rd4 {[%clk 0:00:02.9]} 55. Rc7+ {[%clk
0:00:02.3]} 55... Kd3 {[%clk 0:00:03.5]} 56. Be5 {[%clk 0:00:02.5]} 56... Re4
{[%clk 0:00:02.3]} 57. Rxf7 {[%clk 0:00:03.1]} 57... Ke3 {[%clk 0:00:02]} 58. h5
{[%clk 0:00:03.2]} 58... gxh5+ {[%clk 0:00:01.4]} 59. Kxh5 {[%clk 0:00:03.9]}
59... Kf3 {[%clk 0:00:02.3]} 60. g6 {[%clk 0:00:03.8]} 1-0

[Event "*** Titled Tuesday Blitz"]
[Site "Chess.com"]
[Date "2021.02.09"]
[Round "4"]
[White "Firouzja2003"]
[Black "Onischuk_V"]
[Result "1/2-1/2"]
[WhiteElo "3022"]
[BlackElo "2833"]
[TimeControl "180+1"]
[EndTime "10:40:38 PST"]
[Termination "Game drawn by repetition"]

1. d4 {[%clk 0:03:00.9]} 1... d6 {[%clk 0:03:00.5]} 2. e4 {[%clk 0:03:00.2]}
2... Nf6 {[%clk 0:03:00.1]} 3. Nc3 {[%clk 0:03:00.5]} 3... g6 {[%clk 0:03:00.7]}
4. Be2 {[%clk 0:03:00.5]} 4... Bg7 {[%clk 0:03:00.4]} 5. h4 {[%clk 0:03:01.2]}
5... c5 {[%clk 0:02:58.5]} 6. dxc5 {[%clk 0:03:00.3]} 6... Qa5 {[%clk
0:02:58.4]} 7. Bb5+ {[%clk 0:02:47.8]} 7... Bd7 {[%clk 0:02:47]} 8. Bxd7+ {[%clk
0:02:46.4]} 8... Nbxd7 {[%clk 0:02:46.6]} 9. cxd6 {[%clk 0:02:46.1]} 9... Nxe4
{[%clk 0:02:44.2]} 10. Ne2 {[%clk 0:02:46.7]} 10... Nxd6 {[%clk 0:02:23.8]} 11.
O-O {[%clk 0:02:29]} 11... Nf6 {[%clk 0:02:16.6]} 12. Bg5 {[%clk 0:02:22.1]}
12... O-O {[%clk 0:02:11.7]} 13. Ng3 {[%clk 0:02:04.9]} 13... Rad8 {[%clk
0:02:07.2]} 14. Qe2 {[%clk 0:02:04.9]} 14... Rfe8 {[%clk 0:02:05.3]} 15. Rad1
{[%clk 0:02:04.3]} 15... h6 {[%clk 0:01:53.6]} 16. Bc1 {[%clk 0:02:02]} 16...
Qb6 {[%clk 0:01:38.3]} 17. Rd3 {[%clk 0:02:01.1]} 17... Rc8 {[%clk 0:01:18]} 18.
Rfd1 {[%clk 0:01:59.8]} 18... Nc4 {[%clk 0:01:17.9]} 19. b3 {[%clk 0:01:59.2]}
19... Nd6 {[%clk 0:01:14.7]} 20. Be3 {[%clk 0:01:49.4]} 20... Qc6 {[%clk
0:01:14.2]} 21. Bd4 {[%clk 0:01:44.1]} 21... a6 {[%clk 0:01:10.1]} 22. Be5
{[%clk 0:01:42.1]} 22... h5 {[%clk 0:00:59.9]} 23. Bxf6 {[%clk 0:01:25.5]} 23...
Bxf6 {[%clk 0:00:59.6]} 24. Nd5 {[%clk 0:01:25.7]} 24... Bxh4 {[%clk 0:00:50.7]}
25. c4 {[%clk 0:01:25.8]} 25... e6 {[%clk 0:00:43.6]} 26. Nb4 {[%clk 0:01:04.6]}
26... Qc5 {[%clk 0:00:43.3]} 27. Nc2 {[%clk 0:00:52.4]} 27... Bxg3 {[%clk
0:00:41.7]} 28. Rxg3 {[%clk 0:00:52.5]} 28... Nf5 {[%clk 0:00:41.2]} 29. Rgd3
{[%clk 0:00:51.6]} 29... b5 {[%clk 0:00:41.1]} 30. Rc3 {[%clk 0:00:48.1]} 30...
bxc4 {[%clk 0:00:40.8]} 31. Rxc4 {[%clk 0:00:48.3]} 31... Qb6 {[%clk 0:00:40.9]}
32. Ne1 {[%clk 0:00:46.4]} 32... Rxc4 {[%clk 0:00:39.3]} 33. bxc4 {[%clk
0:00:47.3]} 33... Rc8 {[%clk 0:00:38.3]} 34. Nf3 {[%clk 0:00:47.9]} 34... Rd8
{[%clk 0:00:33.5]} 35. Rxd8+ {[%clk 0:00:38.8]} 35... Qxd8 {[%clk 0:00:33]} 36.
c5 {[%clk 0:00:39.5]} 36... Qd5 {[%clk 0:00:30.5]} 37. Qc2 {[%clk 0:00:38.7]}
37... Ne7 {[%clk 0:00:30]} 38. a3 {[%clk 0:00:37.3]} 38... Nc6 {[%clk
0:00:29.6]} 39. Qc3 {[%clk 0:00:37.8]} 39... e5 {[%clk 0:00:29.1]} 40. Qe3
{[%clk 0:00:38]} 40... Kg7 {[%clk 0:00:26.3]} 41. Kh2 {[%clk 0:00:32.8]} 41...
Nd4 {[%clk 0:00:24.2]} 42. Qxe5+ {[%clk 0:00:26.8]} 42... Qxe5+ {[%clk
0:00:24.2]} 43. Nxe5 {[%clk 0:00:27.7]} 43... Kf6 {[%clk 0:00:24.6]} 44. c6
{[%clk 0:00:21.2]} 44... Nb5 {[%clk 0:00:19.5]} 45. a4 {[%clk 0:00:16.5]} 45...
Nc7 {[%clk 0:00:19.4]} 46. f4 {[%clk 0:00:16.8]} 46... Ke6 {[%clk 0:00:17]} 47.
Kh3 {[%clk 0:00:15.9]} 47... g5 {[%clk 0:00:16.9]} 48. Nd3 {[%clk 0:00:13.4]}
48... f6 {[%clk 0:00:16.4]} 49. fxg5 {[%clk 0:00:10.9]} 49... fxg5 {[%clk
0:00:16.3]} 50. g4 {[%clk 0:00:09.1]} 50... h4 {[%clk 0:00:16.3]} 51. Ne1 {[%clk
0:00:09.2]} 51... Kd6 {[%clk 0:00:15.4]} 52. Nf3 {[%clk 0:00:09.6]} 52... Ne6
{[%clk 0:00:15.4]} 53. c7 {[%clk 0:00:08]} 53... Kxc7 {[%clk 0:00:15.5]} 54.
Nxh4 {[%clk 0:00:06.3]} 54... gxh4 {[%clk 0:00:15.1]} 55. Kxh4 {[%clk
0:00:07.2]} 55... Kd6 {[%clk 0:00:13.7]} 56. g5 {[%clk 0:00:07.8]} 56... Kc5
{[%clk 0:00:08.8]} 57. Kg4 {[%clk 0:00:05.1]} 57... Kb4 {[%clk 0:00:08.3]} 58.
g6 {[%clk 0:00:04.9]} 58... Kxa4 {[%clk 0:00:08.3]} 59. Kf5 {[%clk 0:00:05.6]}
59... Ng7+ {[%clk 0:00:08.2]} 60. Kf6 {[%clk 0:00:05.7]} 60... Nh5+ {[%clk
0:00:08.4]} 61. Kg5 {[%clk 0:00:06]} 61... Ng7 {[%clk 0:00:07.9]} 62. Kf6 {[%clk
0:00:06.6]} 62... Ne8+ {[%clk 0:00:04.6]} 63. Ke7 {[%clk 0:00:06.2]} 63... Ng7
{[%clk 0:00:04.4]} 64. Kf6 {[%clk 0:00:06.3]} 1/2-1/2

[Event "*** Titled Tuesday Blitz"]
[Site "Chess.com"]
[Date "2021.02.09"]
[Round "4"]
[White "chessmause"]
[Black "InitiatingASC"]
[Result "0-1"]
[WhiteElo "2200"]
[BlackElo "2413"]
[TimeControl "180+1"]
[EndTime "10:40:41 PST"]
[Termination "InitiatingASC won by checkmate"]

1. e4 {[%clk 0:03:00.9]} 1... c5 {[%clk 0:02:59.3]} 2. Nc3 {[%clk 0:02:59.6]}
2... g6 {[%clk 0:02:57.3]} 3. d3 {[%clk 0:02:59.2]} 3... Bg7 {[%clk 0:02:57.5]}
4. Be3 {[%clk 0:02:59]} 4... d6 {[%clk 0:02:53.8]} 5. Qd2 {[%clk 0:02:58.9]}
5... Nc6 {[%clk 0:02:52.7]} 6. f3 {[%clk 0:02:56.5]} 6... Nd4 {[%clk 0:02:51.2]}
7. g3 {[%clk 0:02:45.5]} 7... Rb8 {[%clk 0:02:47.3]} 8. Bg2 {[%clk 0:02:44.8]}
8... b5 {[%clk 0:02:46.6]} 9. Nge2 {[%clk 0:02:36.9]} 9... b4 {[%clk 0:02:46.9]}
10. Nd1 {[%clk 0:02:34.6]} 10... Nxe2 {[%clk 0:02:43.8]} 11. Qxe2 {[%clk
0:02:32.2]} 11... Nf6 {[%clk 0:02:42.8]} 12. O-O {[%clk 0:02:29.7]} 12... O-O
{[%clk 0:02:42.3]} 13. Qd2 {[%clk 0:02:29.5]} 13... Re8 {[%clk 0:02:30.4]} 14.
Bh6 {[%clk 0:02:28.7]} 14... Bh8 {[%clk 0:02:30.6]} 15. Ne3 {[%clk 0:02:26.9]}
15... Be6 {[%clk 0:02:25.2]} 16. f4 {[%clk 0:02:26]} 16... Ng4 {[%clk
0:02:19.4]} 17. Nxg4 {[%clk 0:02:24.6]} 17... Bxg4 {[%clk 0:02:19.7]} 18. h3
{[%clk 0:02:23.5]} 18... Bd7 {[%clk 0:02:16.8]} 19. b3 {[%clk 0:02:03.4]} 19...
Bd4+ {[%clk 0:02:08.6]} 20. Kh2 {[%clk 0:02:02.1]} 20... a5 {[%clk 0:01:53.6]}
21. f5 {[%clk 0:01:58.5]} 21... a4 {[%clk 0:01:49.1]} 22. Rae1 {[%clk
0:01:43.4]} 22... a3 {[%clk 0:01:45.4]} 23. Qf4 {[%clk 0:01:40.4]} 23... f6
{[%clk 0:01:33.6]} 24. h4 {[%clk 0:01:30.2]} 24... Be5 {[%clk 0:01:26.4]} 25.
Qf3 {[%clk 0:01:26.3]} 25... Kf7 {[%clk 0:01:24.3]} 26. Bh3 {[%clk 0:01:18.4]}
26... Rg8 {[%clk 0:01:19.9]} 27. Qe3 {[%clk 0:01:11]} 27... gxf5 {[%clk
0:01:05]} 28. Bf4 {[%clk 0:01:05.4]} 28... fxe4 {[%clk 0:01:00.4]} 29. Qxe4
{[%clk 0:01:02.6]} 29... Bxh3 {[%clk 0:00:59.6]} 30. Qxh7+ {[%clk 0:00:59.1]}
30... Rg7 {[%clk 0:00:59.5]} 31. Qh5+ {[%clk 0:00:58.8]} 31... Kg8 {[%clk
0:00:57.3]} 32. Kxh3 {[%clk 0:00:55.5]} 32... Qd7+ {[%clk 0:00:56.3]} 33. Kh2
{[%clk 0:00:54.6]} 33... Qg4 {[%clk 0:00:54.9]} 34. Qxg4 {[%clk 0:00:53.7]}
34... Rxg4 {[%clk 0:00:54.7]} 35. Bxe5 {[%clk 0:00:53.6]} 35... dxe5 {[%clk
0:00:54.5]} 36. Kh3 {[%clk 0:00:46.5]} 36... Rd4 {[%clk 0:00:45.1]} 37. Rf5
{[%clk 0:00:41.8]} 37... Kg7 {[%clk 0:00:43.6]} 38. g4 {[%clk 0:00:40.1]} 38...
Rh8 {[%clk 0:00:43]} 39. Ref1 {[%clk 0:00:37.3]} 39... Kg6 {[%clk 0:00:41.2]}
40. Kg3 {[%clk 0:00:36.3]} 40... Rg8 {[%clk 0:00:33.1]} 41. h5+ {[%clk
0:00:34.4]} 41... Kh6 {[%clk 0:00:31.6]} 42. g5+ {[%clk 0:00:32.2]} 42... Rxg5+
{[%clk 0:00:29.5]} 43. Rxg5 {[%clk 0:00:32.2]} 43... Kxg5 {[%clk 0:00:29.8]} 44.
Rh1 {[%clk 0:00:31.5]} 44... Rg4+ {[%clk 0:00:28.6]} 45. Kf3 {[%clk 0:00:31.5]}
45... Rf4+ {[%clk 0:00:28.9]} 46. Ke3 {[%clk 0:00:31.2]} 46... Kh6 {[%clk
0:00:29]} 47. Rh2 {[%clk 0:00:30]} 47... Rf5 {[%clk 0:00:29.1]} 48. Rg2 {[%clk
0:00:29.2]} 48... Rxh5 {[%clk 0:00:28.7]} 49. Rg8 {[%clk 0:00:28.5]} 49... Rh3+
{[%clk 0:00:23.7]} 50. Ke4 {[%clk 0:00:25.9]} 50... Kh7 {[%clk 0:00:22.1]} 51.
Re8 {[%clk 0:00:24.6]} 51... Kg6 {[%clk 0:00:21.1]} 52. Rc8 {[%clk 0:00:21.6]}
52... Rh1 {[%clk 0:00:18.4]} 53. Rxc5 {[%clk 0:00:21]} 53... Ra1 {[%clk
0:00:19.1]} 54. Rc4 {[%clk 0:00:20.3]} 54... Rxa2 {[%clk 0:00:19.5]} 55. Rxb4
{[%clk 0:00:20.5]} 55... Rxc2 {[%clk 0:00:19.8]} 56. Ra4 {[%clk 0:00:20.7]}
56... a2 {[%clk 0:00:20.3]} 57. Ke3 {[%clk 0:00:20.3]} 57... Rb2 {[%clk
0:00:20.3]} 58. b4 {[%clk 0:00:19.6]} 58... Rxb4 {[%clk 0:00:19.4]} 59. Rxa2
{[%clk 0:00:19.4]} 59... Rf4 {[%clk 0:00:19.4]} 60. Rg2+ {[%clk 0:00:19.4]}
60... Kf5 {[%clk 0:00:19.5]} 61. Rh2 {[%clk 0:00:19.1]} 61... Ke6 {[%clk
0:00:19.3]} 62. Rh7 {[%clk 0:00:18.6]} 62... Rf1 {[%clk 0:00:19.6]} 63. Rh2
{[%clk 0:00:18]} 63... Re1+ {[%clk 0:00:19.7]} 64. Kd2 {[%clk 0:00:18.1]} 64...
Rg1 {[%clk 0:00:19.7]} 65. Ke3 {[%clk 0:00:18.1]} 65... f5 {[%clk 0:00:20.1]}
66. Ra2 {[%clk 0:00:18]} 66... f4+ {[%clk 0:00:19.9]} 67. Ke4 {[%clk 0:00:18.3]}
67... Re1+ {[%clk 0:00:19.8]} 68. Kf3 {[%clk 0:00:18.4]} 68... Re3+ {[%clk
0:00:19.4]} 69. Kf2 {[%clk 0:00:18.4]} 69... Rxd3 {[%clk 0:00:19.8]} 70. Ra6+
{[%clk 0:00:18.8]} 70... Rd6 {[%clk 0:00:19.5]} 71. Ra7 {[%clk 0:00:19]} 71...
e4 {[%clk 0:00:19.9]} 72. Ra4 {[%clk 0:00:18.6]} 72... Ke5 {[%clk 0:00:19.7]}
73. Ra5+ {[%clk 0:00:18.8]} 73... Rd5 {[%clk 0:00:20.1]} 74. Ra7 {[%clk
0:00:19.2]} 74... e6 {[%clk 0:00:20.6]} 75. Rh7 {[%clk 0:00:19.1]} 75... Rd2+
{[%clk 0:00:20.6]} 76. Ke1 {[%clk 0:00:19.6]} 76... e3 {[%clk 0:00:21.1]} 77.
Rh5+ {[%clk 0:00:19.6]} 77... Ke4 {[%clk 0:00:21.5]} 78. Rh6 {[%clk 0:00:19.7]}
78... e5 {[%clk 0:00:22.1]} 79. Re6 {[%clk 0:00:19.6]} 79... Kf3 {[%clk
0:00:22.3]} 80. Rh6 {[%clk 0:00:19.3]} 80... Rg2 {[%clk 0:00:22.1]} 81. Rh3+
{[%clk 0:00:19.1]} 81... Rg3 {[%clk 0:00:22.6]} 82. Rh2 {[%clk 0:00:18.9]} 82...
Rg1# {[%clk 0:00:22.1]} 0-1

[Event "*** Titled Tuesday Blitz"]
[Site "Chess.com"]
[Date "2021.02.09"]
[Round "4"]
[White "NaciSAN"]
[Black "dodorox"]
[Result "1-0"]
[WhiteElo "2304"]
[BlackElo "2112"]
[TimeControl "180+1"]
[EndTime "10:40:42 PST"]
[Termination "NaciSAN won on time"]

1. e4 {[%clk 0:03:00.9]} 1... e6 {[%clk 0:02:58.5]} 2. d4 {[%clk 0:03:00.6]}
2... d5 {[%clk 0:02:58.9]} 3. e5 {[%clk 0:03:01.3]} 3... c5 {[%clk 0:02:58.9]}
4. c3 {[%clk 0:03:01.9]} 4... Nc6 {[%clk 0:02:59.3]} 5. Nf3 {[%clk 0:03:02.6]}
5... Qb6 {[%clk 0:02:59.5]} 6. Na3 {[%clk 0:03:03]} 6... Nh6 {[%clk 0:02:55.6]}
7. Nc2 {[%clk 0:03:02.2]} 7... Be7 {[%clk 0:02:50.2]} 8. Bd3 {[%clk 0:03:01.6]}
8... Bd7 {[%clk 0:02:44.9]} 9. O-O {[%clk 0:03:01.1]} 9... cxd4 {[%clk
0:02:40.9]} 10. Ncxd4 {[%clk 0:03:00]} 10... Nf5 {[%clk 0:02:22.1]} 11. Nxf5
{[%clk 0:02:46.2]} 11... exf5 {[%clk 0:02:21.3]} 12. Rb1 {[%clk 0:02:31.4]}
12... Be6 {[%clk 0:02:16.5]} 13. Be3 {[%clk 0:02:30.6]} 13... Qc7 {[%clk
0:01:56]} 14. Bd4 {[%clk 0:02:23.2]} 14... O-O {[%clk 0:01:42.6]} 15. Re1 {[%clk
0:02:19]} 15... Rfe8 {[%clk 0:01:42.7]} 16. Qc2 {[%clk 0:02:12.8]} 16... g6
{[%clk 0:01:39.7]} 17. Qd2 {[%clk 0:02:13]} 17... Bf8 {[%clk 0:01:34.3]} 18. h4
{[%clk 0:02:04.8]} 18... Bg7 {[%clk 0:01:31.9]} 19. Re2 {[%clk 0:01:56]} 19...
Nxd4 {[%clk 0:01:11.1]} 20. cxd4 {[%clk 0:01:54.4]} 20... Qb6 {[%clk 0:01:09.5]}
21. Ree1 {[%clk 0:01:49]} 21... Bf8 {[%clk 0:01:07.3]} 22. a3 {[%clk 0:01:47]}
22... Rac8 {[%clk 0:01:03.1]} 23. Rec1 {[%clk 0:01:46.6]} 23... Rxc1+ {[%clk
0:00:52.1]} 24. Rxc1 {[%clk 0:01:46.2]} 24... Rc8 {[%clk 0:00:52.4]} 25. Rxc8
{[%clk 0:01:37.6]} 25... Bxc8 {[%clk 0:00:53.3]} 26. Qc3 {[%clk 0:01:32.2]}
26... Qc6 {[%clk 0:00:49.9]} 27. Qxc6 {[%clk 0:01:24]} 27... bxc6 {[%clk
0:00:49.9]} 28. g3 {[%clk 0:01:20]} 28... Be7 {[%clk 0:00:49.4]} 29. Kf1 {[%clk
0:01:18.9]} 29... Kf8 {[%clk 0:00:49.1]} 30. Ke1 {[%clk 0:01:14.9]} 30... Ke8
{[%clk 0:00:48.1]} 31. Kd2 {[%clk 0:01:14.2]} 31... c5 {[%clk 0:00:44.4]} 32.
Kc3 {[%clk 0:01:08.5]} 32... Bb7 {[%clk 0:00:39.4]} 33. dxc5 {[%clk 0:01:04.9]}
33... Bxc5 {[%clk 0:00:38.5]} 34. Nd4 {[%clk 0:01:04.7]} 34... Ke7 {[%clk
0:00:32.5]} 35. f4 {[%clk 0:01:01.5]} 35... f6 {[%clk 0:00:29.8]} 36. exf6+
{[%clk 0:00:55.7]} 36... Kxf6 {[%clk 0:00:30.7]} 37. b4 {[%clk 0:00:55.3]} 37...
Bb6 {[%clk 0:00:27.3]} 38. a4 {[%clk 0:00:55]} 38... Ke7 {[%clk 0:00:26.5]} 39.
a5 {[%clk 0:00:55]} 39... Bd8 {[%clk 0:00:22.5]} 40. Nf3 {[%clk 0:00:44.1]}
40... Kd6 {[%clk 0:00:21.3]} 41. Kd4 {[%clk 0:00:42.7]} 41... Bf6+ {[%clk
0:00:21]} 42. Ne5 {[%clk 0:00:42.8]} 42... Bxe5+ {[%clk 0:00:18]} 43. fxe5+
{[%clk 0:00:42.5]} 43... Ke6 {[%clk 0:00:18.5]} 44. b5 {[%clk 0:00:41.6]} 44...
h6 {[%clk 0:00:17.2]} 45. b6 {[%clk 0:00:18.9]} 45... axb6 {[%clk 0:00:16.7]}
46. axb6 {[%clk 0:00:19.2]} 46... g5 {[%clk 0:00:17.1]} 47. hxg5 {[%clk
0:00:19]} 47... hxg5 {[%clk 0:00:17.4]} 48. Be2 {[%clk 0:00:16]} 48... f4 {[%clk
0:00:07.1]} 49. Bg4+ {[%clk 0:00:16.1]} 49... Ke7 {[%clk 0:00:07]} 50. gxf4
{[%clk 0:00:17]} 50... gxf4 {[%clk 0:00:07.2]} 51. Kc5 {[%clk 0:00:14]} 51... d4
{[%clk 0:00:04.1]} 52. Kxd4 {[%clk 0:00:14]} 52... f3 {[%clk 0:00:04.6]} 53. Ke3
{[%clk 0:00:14.3]} 53... f2 {[%clk 0:00:02.4]} 54. Kxf2 {[%clk 0:00:14.2]} 54...
Kd8 {[%clk 0:00:01.4]} 55. Ke3 {[%clk 0:00:14.4]} 55... Ke7 {[%clk 0:00:02]} 56.
Kd4 {[%clk 0:00:14.7]} 56... Kd8 {[%clk 0:00:02.5]} 57. Kc5 {[%clk 0:00:15]}
57... Ke7 {[%clk 0:00:03.2]} 58. Bf5 {[%clk 0:00:14.1]} 58... Ba8 {[%clk
0:00:03]} 59. Kb5 {[%clk 0:00:13.1]} 59... Bb7 {[%clk 0:00:03.3]} 60. Ka5 {[%clk
0:00:13.5]} 60... Kf7 {[%clk 0:00:03.4]} 61. Kb5 {[%clk 0:00:11.9]} 61... Ke7
{[%clk 0:00:03.1]} 62. Kc5 {[%clk 0:00:10.9]} 62... Ba8 {[%clk 0:00:02.8]} 63.
Kd4 {[%clk 0:00:09.3]} 63... Bb7 {[%clk 0:00:03.3]} 64. Be4 {[%clk 0:00:09.7]}
1-0

[Event "*** Titled Tuesday Blitz"]
[Site "Chess.com"]
[Date "2021.02.09"]
[Round "4"]
[White "Sanyura"]
[Black "awesomevishesh"]
[Result "0-1"]
[WhiteElo "2639"]
[BlackElo "2493"]
[TimeControl "180+1"]
[EndTime "10:40:44 PST"]
[Termination "awesomevishesh won by resignation"]

1. e4 {[%clk 0:02:50.9]} 1... c5 {[%clk 0:02:59]} 2. Nf3 {[%clk 0:02:50]} 2...
d6 {[%clk 0:02:58.4]} 3. d4 {[%clk 0:02:49.9]} 3... cxd4 {[%clk 0:02:57.8]} 4.
Nxd4 {[%clk 0:02:50.8]} 4... Nf6 {[%clk 0:02:58.2]} 5. Nc3 {[%clk 0:02:50.8]}
5... a6 {[%clk 0:02:58.6]} 6. h3 {[%clk 0:02:49.7]} 6... e5 {[%clk 0:02:57.6]}
7. Nde2 {[%clk 0:02:49.9]} 7... h5 {[%clk 0:02:57.3]} 8. Bg5 {[%clk 0:02:50.4]}
8... Be6 {[%clk 0:02:55.1]} 9. g3 {[%clk 0:02:50.3]} 9... Nbd7 {[%clk 0:02:48]}
10. Bg2 {[%clk 0:02:49]} 10... Be7 {[%clk 0:02:38.2]} 11. Be3 {[%clk 0:02:30.2]}
11... b5 {[%clk 0:02:29.7]} 12. a4 {[%clk 0:02:27.9]} 12... b4 {[%clk
0:02:06.1]} 13. Nd5 {[%clk 0:02:27.5]} 13... Nxd5 {[%clk 0:01:52.7]} 14. exd5
{[%clk 0:02:28.4]} 14... Bf5 {[%clk 0:01:52.7]} 15. c3 {[%clk 0:02:28.9]} 15...
bxc3 {[%clk 0:01:37.9]} 16. Nxc3 {[%clk 0:02:29.8]} 16... Bg5 {[%clk 0:01:19.6]}
17. Qd2 {[%clk 0:02:04.7]} 17... Bxe3 {[%clk 0:01:18.7]} 18. Qxe3 {[%clk
0:02:05.6]} 18... Rb8 {[%clk 0:01:18.2]} 19. Qe2 {[%clk 0:02:00.5]} 19... Nc5
{[%clk 0:01:12.9]} 20. Rd1 {[%clk 0:01:57.5]} 20... Qb6 {[%clk 0:00:57.3]} 21.
Rd2 {[%clk 0:01:57.2]} 21... Nb3 {[%clk 0:00:53.2]} 22. O-O {[%clk 0:00:27.2]}
22... Nxd2 {[%clk 0:00:50.6]} 23. Qxd2 {[%clk 0:00:28.1]} 23... Qxb2 {[%clk
0:00:42.5]} 24. Qg5 {[%clk 0:00:28]} 24... Qxc3 {[%clk 0:00:33.1]} 25. Qxf5
{[%clk 0:00:28.3]} 25... O-O {[%clk 0:00:22.3]} 26. Be4 {[%clk 0:00:20.4]} 26...
g6 {[%clk 0:00:20.7]} 27. Qf6 {[%clk 0:00:20.8]} 27... Qc7 {[%clk 0:00:16.4]}
28. h4 {[%clk 0:00:16.5]} 28... Qd8 {[%clk 0:00:15.5]} 29. Qf3 {[%clk
0:00:14.2]} 29... f5 {[%clk 0:00:15.5]} 30. Bc2 {[%clk 0:00:13.9]} 30... e4
{[%clk 0:00:15.7]} 31. Qe3 {[%clk 0:00:13.4]} 31... Kg7 {[%clk 0:00:14.1]} 32.
Bd1 {[%clk 0:00:09.4]} 32... Qf6 {[%clk 0:00:12]} 33. Qe2 {[%clk 0:00:07]} 33...
a5 {[%clk 0:00:10.5]} 34. Qa6 {[%clk 0:00:06.7]} 34... Ra8 {[%clk 0:00:10.4]}
35. Qb7+ {[%clk 0:00:07.2]} 35... Qf7 {[%clk 0:00:10.1]} 36. Qb6 {[%clk
0:00:07.8]} 36... Qe7 {[%clk 0:00:07.4]} 37. Qd4+ {[%clk 0:00:08.1]} 37... Qe5
{[%clk 0:00:05.6]} 38. Qc4 {[%clk 0:00:08.6]} 38... Rfc8 {[%clk 0:00:05.2]} 39.
Qb5 {[%clk 0:00:09.1]} 39... Qe7 {[%clk 0:00:05.3]} 40. Be2 {[%clk 0:00:08.5]}
40... Qc7 {[%clk 0:00:05.5]} 41. Qb2+ {[%clk 0:00:05.7]} 41... Kf7 {[%clk
0:00:05.2]} 42. Qd2 {[%clk 0:00:06]} 42... Kg7 {[%clk 0:00:04.2]} 43. Qf4 {[%clk
0:00:04.8]} 43... Qe7 {[%clk 0:00:03.9]} 44. Rd1 {[%clk 0:00:03.9]} 44... Rab8
{[%clk 0:00:04.1]} 45. Qe3 {[%clk 0:00:03.9]} 45... Qe5 {[%clk 0:00:04.4]} 46.
Qg5 {[%clk 0:00:04.1]} 46... Qf6 {[%clk 0:00:04.4]} 47. Qe3 {[%clk 0:00:04.3]}
47... Rb2 {[%clk 0:00:04.5]} 48. Bf1 {[%clk 0:00:04.1]} 48... Rc7 {[%clk
0:00:04.8]} 49. Qf4 {[%clk 0:00:02.9]} 49... Qe5 {[%clk 0:00:05]} 50. Qg5 {[%clk
0:00:02.9]} 50... Qf6 {[%clk 0:00:05]} 51. Qe3 {[%clk 0:00:03.2]} 51... Rb4
{[%clk 0:00:05.3]} 52. Rc1 {[%clk 0:00:02.4]} 52... Rxc1 {[%clk 0:00:05]} 53.
Qxc1 {[%clk 0:00:03.3]} 53... Rb7 {[%clk 0:00:04.9]} 54. Qc6 {[%clk 0:00:03.7]}
54... Qe7 {[%clk 0:00:05.1]} 55. Qa6 {[%clk 0:00:04.2]} 55... Qc7 {[%clk
0:00:04.8]} 56. Bb5 {[%clk 0:00:02.8]} 56... Ra7 {[%clk 0:00:04.5]} 57. Qc6
{[%clk 0:00:02.9]} 57... Qxc6 {[%clk 0:00:04.9]} 58. Bxc6 {[%clk 0:00:03.3]}
58... Ra6 {[%clk 0:00:04.2]} 59. Kf1 {[%clk 0:00:03.8]} 59... Rb6 {[%clk
0:00:04.5]} 60. Ke2 {[%clk 0:00:04.4]} 60... Rb4 {[%clk 0:00:04.5]} 61. Ke3
{[%clk 0:00:04.8]} 61... Kf6 {[%clk 0:00:04.9]} 62. Kf4 {[%clk 0:00:05]} 62...
Rb3 {[%clk 0:00:05.3]} 0-1